bitfinex/quotes_BTCUSD_20220307
["timestamp","ask_amount","ask_price","bid_price","bid_amount"]
[1646663768759,0.142,39067.0,39066.0,0.178022]
[1646663768962,0.53937,39067.0,39062.0,0.064035]
[1646663769163,0.14,39063.0,39062.0,0.064035]
[1646663769363,0.002,39067.0,39062.0,0.064035]
[1646663769764,0.002,39067.0,39064.0,0.1960958]
[1646663769962,0.14,39065.0,39064.0,0.1960958]
[1646663770260,0.14,39065.0,39064.0,0.2601178]
[1646663770460,0.14,39065.0,39064.0,0.3101178]
[1646663771063,0.00051232,39065.0,39064.0,0.3101178]
[1646663771265,0.00051232,39065.0,39064.0,0.2460958]
[1646663771702,0.00051232,39065.0,39064.0,0.6434658]
[1646663772701,0.00051232,39065.0,39064.0,0.73324709]
[1646663772906,0.00060232,39065.0,39064.0,1.0022526]
[1646663773105,0.00060232,39065.0,39064.0,1.1022526]
[1646663773303,0.00060232,39065.0,39064.0,1.9413326]
[1646663773507,0.01945838,39079.0,39066.0,0.80484]
[1646663773705,0.27830028,39075.0,39069.0,0.02554]
[1646663773905,0.01945838,39079.0,39072.0,0.02554]
[1646663774105,0.13915014,39075.0,39074.0,0.18198463]
[1646663774406,0.8,39090.0,39077.0,0.39737]
[1646663774407,0.5,39090.0,39077.0,0.39737]
[1646663774606,0.14,39086.0,39079.0,0.461354]
[1646663774909,0.5,39090.0,39081.0,0.4117403]
[1646663774910,0.14,39082.0,39081.0,0.4117403]
[1646663775108,0.76436656,39090.0,39081.0,0.60794454]
[1646663775372,0.76436656,39090.0,39082.0,0.19799711]
[1646663775373,0.14,39086.0,39082.0,0.19799711]
[1646663775577,9.0,39092.0,39083.0,0.39737]
[1646663775774,0.00117793,39088.0,39085.0,0.12797]
[1646663775973,9.0,39092.0,39086.0,0.39737]
[1646663776171,9.0,39092.0,39086.0,0.44737]
[1646663776172,0.0011779,39088.0,39086.0,0.44737]
[1646663776372,0.00117789,39087.0,39086.0,0.44737]
[1646663776571,0.17146222,39091.0,39086.0,0.60752291]
[1646663776772,9.0,39092.0,39087.0,0.089513]
[1646663776773,6.311e-05,39089.0,39087.0,0.089513]
[1646663777074,6.311e-05,39089.0,39088.0,0.42291]
[1646663777275,6.311e-05,39089.0,39088.0,0.51991]
[1646663777477,6.311e-05,39089.0,39088.0,0.58269]
[1646663777673,9.0,39092.0,39089.0,0.02554]
[1646663777879,9.0,39092.0,39091.0,0.42291]
[1646663777880,4.9829871,39092.0,39091.0,0.42291]
[1646663778075,4.9829871,39092.0,39091.0,0.48269]
[1646663778076,2.91323069,39092.0,39091.0,0.48269]
[1646663778274,0.015,39111.0,39098.0,0.02554]
[1646663778477,0.015,39111.0,39100.0,0.61111105]
[1646663778675,0.015,39111.0,39101.0,0.4]
[1646663778875,0.18585846,39109.0,39104.0,0.39737]
[1646663779121,0.24980946,39109.0,39104.0,0.44737]
[1646663779514,0.24980946,39109.0,39104.0,0.05]
[1646663779717,0.24980946,39109.0,39103.0,0.113953]
[1646663780314,0.00021016,39108.0,39103.0,0.113953]
[1646663780514,0.00021016,39108.0,39104.0,0.39737]
[1646663780713,0.00021016,39108.0,39098.0,0.01277]
[1646663780714,0.15,39105.0,39098.0,0.01277]
[1646663780916,0.15,39105.0,39094.0,0.05]
[1646663780917,0.86771046,39103.0,39094.0,0.05]
[1646663781113,0.15,39099.0,39090.0,0.047]
[1646663781316,0.86771046,39103.0,39090.0,0.047]
[1646663781317,0.93168346,39103.0,39093.0,0.127937]
[1646663781523,0.00021016,39100.0,39094.0,0.397267]
[1646663781715,0.00021016,39100.0,39094.0,0.422819]
[1646663781915,0.00021016,39100.0,39094.0,0.397279]
[1646663782318,0.06417816,39100.0,39096.0,0.314169]
[1646663782622,1.10528604,39103.0,39096.0,0.314169]
[1646663782623,0.95373446,39103.0,39096.0,0.314169]
[1646663782867,0.00018644,39099.0,39098.0,0.397238]
[1646663783075,0.00018644,39099.0,39098.0,0.447238]
[1646663783266,0.15076817,39097.0,39096.0,0.05]
[1646663783468,0.15076817,39097.0,39096.0,0.314171]
[1646663783667,0.15076817,39097.0,39096.0,0.364171]
[1646663783867,0.15076817,39097.0,39096.0,0.492089]
[1646663784871,0.48672077,39097.0,39095.0,0.127933]
[1646663785468,0.48672077,39097.0,39091.0,0.004]
[1646663785668,0.0999,39095.0,39091.0,0.004]
[1646663785869,0.17251624,39092.0,39091.0,0.314212]
[1646663786072,0.62251624,39092.0,39084.0,0.05]
[1646663786270,0.62251624,39092.0,39083.0,0.1998]
[1646663786271,0.15,39087.0,39083.0,0.1998]
[1646663786711,0.15,39087.0,39084.0,0.063993]
[1646663786911,0.15,39086.0,39084.0,0.063993]
[1646663787111,0.31537374,39086.0,39084.0,0.063993]
[1646663787313,0.397274,39085.0,39084.0,0.063993]
[1646663787511,0.31537374,39086.0,39083.0,0.127987]
[1646663787715,0.15,39084.0,39083.0,0.127987]
[1646663788513,0.064,39085.0,39083.0,0.177987]
[1646663788715,0.0641899,39085.0,39083.0,0.177987]
[1646663788912,0.15,39084.0,39083.0,0.177987]
[1646663789112,0.15,39084.0,39083.0,0.492286]
[1646663789312,0.0001899,39085.0,39083.0,0.492286]
[1646663789313,0.0001899,39085.0,39083.0,0.69617612]
[1646663789513,0.0001899,39085.0,39084.0,0.314289]
[1646663789713,0.32582892,39093.0,39084.0,0.314289]
[1646663789714,0.82582892,39093.0,39084.0,0.314289]
[1646663790016,0.5,39093.0,39086.0,0.314269]
[1646663790268,0.5,39093.0,39088.0,0.314248]
[1646663790467,0.00110093,39089.0,39088.0,0.364248]
[1646663790660,0.00110093,39089.0,39088.0,0.36425]
[1646663790862,0.00110093,39089.0,39088.0,0.35925]
[1646663791264,0.00110093,39089.0,39088.0,0.55116]
[1646663791861,0.00110093,39089.0,39088.0,0.615131]
[1646663792263,0.00110093,39089.0,39088.0,0.55116]
[1646663793362,0.00110093,39089.0,39088.0,0.60116]
[1646663793563,0.00110093,39089.0,39088.0,0.61499465]
[1646663795107,0.1462904,39094.0,39089.0,0.52392544]
[1646663795307,0.15076817,39097.0,39089.0,0.76911439]
[1646663795308,0.00110087,39090.0,39089.0,0.76911439]
[1646663795511,0.15076817,39097.0,39089.0,0.76911439]
[1646663795512,0.15076817,39097.0,39090.0,0.52554]
[1646663795808,0.15076817,39097.0,39092.0,0.03895356]
[1646663796012,0.5,39101.0,39095.0,0.403676]
[1646663796210,0.5,39101.0,39100.0,0.21710937]
[1646663796408,0.5,39101.0,39100.0,0.53124037]
[1646663797009,0.1462904,39102.0,39100.0,0.314131]
[1646663797209,0.1462904,39102.0,39101.0,0.314122]
[1646663797210,0.14647986,39102.0,39101.0,0.314122]
[1646663798079,0.1462904,39102.0,39101.0,0.53152772]
[1646663799079,0.80392392,39103.0,39101.0,0.53152772]
[1646663799278,0.42006946,39103.0,39102.0,0.42554]
[1646663799478,0.42006946,39103.0,39102.0,0.739652]
[1646663799678,0.42006946,39103.0,39102.0,0.786652]
[1646663799679,0.03662392,39103.0,39102.0,0.786652]
[1646663800079,0.02662392,39103.0,39102.0,1.578732]
[1646663800281,0.037627,39102.0,39101.0,0.29294572]
[1646663800584,0.6462904,39116.0,39103.0,0.02554]
[1646663800780,0.6462904,39116.0,39104.0,0.12788]
[1646663800980,0.6462904,39116.0,39104.0,0.17788]
[1646663801179,0.6462904,39116.0,39104.0,0.20342]
[1646663801379,0.6462904,39116.0,39105.0,0.06394]
[1646663801380,0.1462904,39112.0,39105.0,0.06394]
[1646663801617,0.27493442,39108.0,39105.0,0.06394]
[1646663801815,0.00255879,39106.0,39105.0,0.06394]
[1646663802015,0.00255879,39106.0,39104.0,0.12788]
[1646663802317,0.1462904,39106.0,39104.0,0.12788]
[1646663803415,0.1462904,39106.0,39104.0,0.17788]
[1646663806562,0.1462904,39106.0,39105.0,0.22978713]
[1646663806862,0.5362904,39106.0,39104.0,0.18807891]
[1646663807465,0.016325,39106.0,39104.0,0.23807891]
[1646663807662,0.016325,39106.0,39104.0,0.43787891]
[1646663807863,0.5,39107.0,39105.0,0.3]
[1646663808063,0.5,39107.0,39105.0,0.35]
[1646663808064,0.11654304,39107.0,39105.0,0.35]
[1646663808267,0.00018904,39107.0,39105.0,0.35]
[1646663808464,0.9399095,39115.0,39105.0,0.35]
[1646663808465,0.9143695,39115.0,39105.0,0.35]
[1646663808665,0.1362904,39110.0,39105.0,0.61374117]
[1646663809019,0.9143695,39115.0,39105.0,0.05]
[1646663809020,0.1362904,39108.0,39105.0,0.05]
[1646663809217,0.722359,39115.0,39105.0,0.05]
[1646663809218,0.1362904,39110.0,39105.0,0.127905]
[1646663809415,0.1362904,39110.0,39105.0,0.427905]
[1646663809616,0.1362904,39110.0,39107.0,0.1998]
[1646663809820,0.1362904,39110.0,39108.0,0.063952]
[1646663809821,0.22409405,39110.0,39108.0,0.063952]
[1646663810019,0.1362904,39109.0,39108.0,0.063952]
[1646663810618,0.37431724,39109.0,39108.0,0.063952]
[1646663810820,0.38031724,39109.0,39108.0,0.063952]
[1646663811019,0.38031724,39109.0,39105.0,0.127905]
[1646663811020,0.40585724,39109.0,39105.0,0.127905]
[1646663811219,0.422807,39108.0,39105.0,0.127905]
[1646663811419,0.1362904,39106.0,39105.0,0.127905]
[1646663811619,0.1618304,39106.0,39093.0,0.01277]
[1646663811818,0.16006491,39101.0,39096.0,0.5]
[1646663812018,0.16006491,39101.0,39094.0,0.21506607]
[1646663812418,0.16006491,39101.0,39091.0,0.01277]
[1646663812619,0.16006491,39101.0,39085.0,0.862731]
[1646663812620,0.32554,39100.0,39096.0,0.063968]
[1646663812868,0.32554,39100.0,39089.0,0.133976]
[1646663812869,0.1362904,39097.0,39089.0,0.133976]
[1646663813166,0.19543069,39096.0,39089.0,0.133976]
[1646663813371,0.25943627,39093.0,39089.0,0.133976]
[1646663813566,0.02554,39092.0,39089.0,0.133976]
[1646663813767,0.1362904,39090.0,39089.0,0.133976]
[1646663814165,0.1362904,39090.0,39089.0,0.127976]
[1646663814465,0.32280611,39090.0,39089.0,0.127976]
[1646663814663,0.1362904,39090.0,39089.0,0.127976]
[1646663815265,0.2361904,39090.0,39089.0,0.127976]
[1646663817010,0.5361904,39090.0,39089.0,0.127976]
[1646663817410,0.2321904,39090.0,39089.0,0.127976]
[1646663818913,0.2341904,39090.0,39089.0,0.127976]
[1646663819112,0.2341904,39090.0,39089.0,0.3150129]
[1646663819313,0.002,39090.0,39089.0,0.3150129]
[1646663820570,1.0,39100.0,39089.0,0.3150129]
[1646663820571,0.6322904,39099.0,39089.0,0.3650129]
[1646663820770,0.1322904,39099.0,39091.0,0.063961]
[1646663821170,1.0,39100.0,39091.0,0.51346767]
[1646663821367,1.0,39100.0,39098.0,0.01345653]
[1646663821569,0.616331,39100.0,39098.0,0.07740395]
[1646663821768,0.616331,39100.0,39099.0,0.18579747]
[1646663821970,0.59996578,39109.0,39097.0,0.18512168]
[1646663822170,0.0999,39109.0,39103.0,0.1992]
[1646663822371,0.0999,39109.0,39105.0,0.7793]
[1646663822570,6.579e-05,39109.0,39106.0,0.3]
[1646663822769,6.579e-05,39109.0,39108.0,0.127871]
[1646663822969,6.579e-05,39109.0,39108.0,0.01277]
[1646663823169,6.579e-05,39109.0,39108.0,0.19753318]
[1646663823368,0.21215923,39117.0,39108.0,0.01277]
[1646663823369,0.063949,39113.0,39108.0,0.01277]
[1646663823568,0.21215923,39117.0,39108.0,0.01277]
[1646663823772,0.00021911,39110.0,39108.0,0.01277]
[1646663824218,0.00021911,39110.0,39108.0,1.09207]
[1646663824420,0.00021911,39110.0,39109.0,0.35977]
[1646663824617,0.55829328,39128.0,39109.0,0.35977]
[1646663824618,0.20859328,39128.0,39109.0,0.35977]
[1646663824815,0.20859328,39129.0,39112.0,0.127847]
[1646663825020,0.20859328,39129.0,39113.0,0.31277]
[1646663825317,0.1724302,39128.0,39114.0,0.06392068]
[1646663825515,0.2363512,39128.0,39117.0,0.063927]
[1646663825915,0.2618912,39128.0,39117.0,0.063927]
[1646663826117,0.00021911,39123.0,39117.0,0.063927]
[1646663826321,0.00021911,39123.0,39116.0,0.127853]
[1646663826322,0.17822145,39118.0,39116.0,0.127853]
[1646663826517,0.17822145,39118.0,39102.0,0.2324]
[1646663826518,0.46694914,39118.0,39102.0,0.2324]
[1646663826715,0.46694914,39118.0,39100.0,0.255741]
[1646663826716,0.56971815,39118.0,39101.0,0.45]
[1646663826916,0.56971815,39118.0,39112.0,0.002]
[1646663826917,0.02554,39117.0,39112.0,0.002]
[1646663827115,0.02554,39117.0,39113.0,0.01401292]
[1646663827317,0.00021911,39115.0,39113.0,0.01401292]
[1646663827770,0.00021911,39115.0,39113.0,0.07794992]
[1646663828165,0.0999,39117.0,39113.0,0.07794992]
[1646663828367,0.19731276,39122.0,39113.0,0.07794992]
[1646663828567,0.00021911,39116.0,39113.0,0.07794992]
[1646663828766,0.00021911,39116.0,39113.0,0.063937]
[1646663829371,0.29644377,39117.0,39109.0,0.01536755]
[1646663829569,0.27199498,39121.0,39108.0,0.003]
[1646663829570,0.02554,39114.0,39108.0,0.003]
[1646663829770,0.02554,39110.0,39108.0,0.003]
[1646663830168,0.1,39114.0,39109.0,0.01174962]
[1646663830369,0.00021911,39116.0,39104.0,0.05]
[1646663830370,0.00021911,39116.0,39110.0,0.01319408]
[1646663830771,0.001,39114.0,39110.0,0.07713808]
[1646663830972,0.00021911,39113.0,39110.0,0.07713808]
[1646663831817,0.064943,39114.0,39110.0,0.07713808]
[1646663832315,0.00021911,39113.0,39110.0,0.07713808]
[1646663832515,0.00021911,39113.0,39110.0,0.01319408]
[1646663832719,0.43002745,39112.0,39110.0,0.063954]
[1646663832918,0.21430513,39109.0,39108.0,0.14348272]
[1646663833118,0.21430513,39109.0,39108.0,0.01558972]
[1646663833319,0.397267,39108.0,39105.0,0.002]
[1646663833519,0.0999,39106.0,39105.0,0.002]
[1646663833720,0.29537727,39106.0,39105.0,0.002]
[1646663834128,0.92853741,39106.0,39105.0,0.002]
[1646663834722,0.17821925,39101.0,39100.0,0.01487503]
[1646663835566,0.02554,39103.0,39100.0,0.01487503]
[1646663835567,0.02554,39103.0,39100.0,0.00987503]
[1646663835765,0.06433551,39104.0,39100.0,0.00987503]
[1646663836770,0.16555236,39101.0,39100.0,0.00987503]
[1646663838667,0.86281936,39101.0,39100.0,0.00987503]
[1646663838871,0.86481936,39101.0,39100.0,0.00987503]
[1646663839127,3.41123447,39101.0,39100.0,0.00987503]
[1646663839328,3.41123447,39101.0,39092.0,0.12797]
[1646663839329,0.1682747,39095.0,39093.0,0.01109676]
[1646663839526,0.4377982,39094.0,39093.0,0.01109676]
[1646663839729,0.8350652,39094.0,39093.0,0.01109676]
[1646663839926,0.02554,39092.0,39084.0,0.01361589]
[1646663840131,0.0897,39088.0,39085.0,0.12799]
[1646663840927,0.26001638,39088.0,39085.0,0.12799]
[1646663841129,0.0897,39088.0,39085.0,0.12799]
[1646663841730,0.17480239,39081.0,39079.0,0.05]
[1646663841933,0.17480239,39081.0,39080.0,0.01312649]
[1646663842131,0.17480239,39081.0,39080.0,0.2212168]
[1646663842333,0.17480239,39081.0,39080.0,0.4204168]
[1646663842761,0.0897,39088.0,39081.0,0.063981]
[1646663843160,0.047,39092.0,39081.0,0.063981]
[1646663843359,0.047,39092.0,39087.0,0.01315117]
[1646663843761,0.0897,39088.0,39087.0,0.01315117]
[1646663843964,0.0897,39088.0,39087.0,0.07713517]
[1646663845364,0.2229,39099.0,39087.0,0.23740846]
[1646663845564,0.1,39100.0,39087.0,0.45726891]
[1646663845763,0.19342154,39100.0,39093.0,0.22720584]
[1646663845963,0.19798349,39101.0,39093.0,0.07613499]
[1646663845964,0.28987446,39098.0,39093.0,0.07613499]
[1646663846811,0.0999,39094.0,39093.0,0.01216899]
[1646663849412,0.30528325,39098.0,39093.0,0.01216899]
[1646663849612,0.063981,39100.0,39093.0,0.01216899]
[1646663849815,0.58718894,39101.0,39094.0,0.18468259]
[1646663849816,0.0999,39101.0,39094.0,0.18468259]
[1646663850014,0.063969,39100.0,39094.0,0.18468259]
[1646663850467,0.00035751,39104.0,39095.0,0.127929]
[1646663850665,0.00035751,39104.0,39095.0,0.122929]
[1646663851064,0.30035751,39104.0,39095.0,0.122929]
[1646663851465,0.06431851,39104.0,39095.0,0.122929]
[1646663851666,0.06431851,39104.0,39094.0,0.18468259]
[1646663852068,0.06431851,39104.0,39100.0,0.17442253]
[1646663852269,0.06431851,39104.0,39101.0,0.01275213]
[1646663852270,0.00035751,39104.0,39101.0,0.01275213]
[1646663852572,0.00035751,39104.0,39101.0,0.21195213]
[1646663852769,0.00035751,39104.0,39103.0,0.1992]
[1646663853170,0.00035751,39104.0,39103.0,0.2492]
[1646663853467,0.00035751,39104.0,39103.0,0.360142]
[1646663854711,0.00035751,39104.0,39103.0,0.2962]
[1646663854914,0.00035751,39104.0,39103.0,0.097]
[1646663855117,0.22262478,39104.0,39103.0,0.097]
[1646663855413,0.00035751,39104.0,39103.0,0.047]
[1646663855812,0.00035751,39104.0,39101.0,0.01275213]
[1646663856012,0.16386257,39103.0,39101.0,0.01275213]
[1646663857213,0.06432051,39104.0,39101.0,0.01275213]
[1646663858258,0.06432051,39104.0,39101.0,0.01257306]
[1646663859358,0.06432051,39104.0,39101.0,0.07652706]
[1646663859857,0.06432051,39104.0,39102.0,0.05]
[1646663860058,0.06432051,39104.0,39102.0,0.1]
[1646663860960,0.06432051,39104.0,39101.0,0.01257306]
[1646663861615,0.06432051,39104.0,39101.0,0.00757306]
[1646663862715,0.00035751,39104.0,39101.0,0.00757306]
[1646663863915,0.00035751,39104.0,39102.0,0.06395141]
[1646663864416,0.00035751,39104.0,39101.0,0.00757306]
[1646663865262,0.00035751,39104.0,39101.0,0.07153106]
[1646663865861,0.00035751,39104.0,39101.0,0.06653106]
[1646663866063,0.00035751,39104.0,39101.0,0.00257306]
[1646663866364,0.00035751,39104.0,39097.0,0.01277]
[1646663866365,0.6678999,39103.0,39097.0,0.01277]
[1646663866663,0.6678999,39103.0,39097.0,0.02691616]
[1646663866862,0.2814004,39100.0,39097.0,0.02691616]
[1646663867063,0.18547835,39098.0,39097.0,0.02691616]
[1646663867263,0.3,39101.0,39097.0,0.02691616]
[1646663867464,0.0999,39099.0,39097.0,0.02691616]
[1646663867865,0.0999,39099.0,39097.0,0.01266373]
[1646663868068,0.063978,39100.0,39097.0,0.01266373]
[1646663869408,0.063978,39100.0,39096.0,0.01288124]
[1646663869806,0.163878,39100.0,39096.0,0.01288124]
[1646663870207,0.00035751,39104.0,39096.0,0.01288124]
[1646663870406,0.00035751,39104.0,39097.0,0.063957]
[1646663871008,0.2232731,39103.0,39097.0,0.2326633]
[1646663871212,0.2872341,39103.0,39097.0,0.2326633]
[1646663871908,0.1348669,39093.0,39092.0,0.24666511]
[1646663872109,0.1348669,39093.0,39092.0,0.22112511]
[1646663872310,0.1348669,39093.0,39092.0,0.42032511]
[1646663872961,0.1348669,39093.0,39092.0,0.05]
[1646663873161,0.0848669,39093.0,39091.0,0.241869]
[1646663873357,0.0848669,39093.0,39092.0,0.05]
[1646663873559,0.0848669,39093.0,39091.0,0.291869]
[1646663877214,0.0848669,39093.0,39091.0,0.441669]
[1646663878214,0.0848669,39093.0,39092.0,0.1998]
[1646663878616,0.0848669,39093.0,39092.0,0.2498]
[1646663880119,0.0848669,39093.0,39092.0,0.05]
[1646663880361,0.0848669,39093.0,39091.0,0.241869]
[1646663880762,0.00035751,39104.0,39092.0,0.1992]
[1646663880968,0.87860167,39109.0,39095.0,0.063956]
[1646663880969,0.56531903,39109.0,39095.0,0.063956]
[1646663881164,0.01278,39110.0,39096.0,0.047]
[1646663881167,0.3,39110.0,39096.0,0.047]
[1646663881464,0.5999,39112.0,39102.0,0.2492]
[1646663881661,0.00021906,39109.0,39102.0,0.2492]
[1646663881860,0.2920578,39106.0,39104.0,0.06395]
[1646663882063,0.2920578,39106.0,39103.0,0.1279]
[1646663882064,0.3,39105.0,39103.0,0.1279]
[1646663882262,0.3175978,39106.0,39103.0,0.05]
[1646663882464,0.3175978,39106.0,39091.0,0.2992]
[1646663882465,0.4174978,39106.0,39091.0,0.2992]
[1646663882663,0.3,39105.0,39092.0,0.5]
[1646663882861,0.29967157,39106.0,39095.0,0.19024438]
[1646663883062,0.29967157,39106.0,39095.0,0.58194638]
[1646663883262,0.29967157,39106.0,39097.0,0.15]
[1646663883263,0.09586477,39106.0,39097.0,0.15]
[1646663883465,0.00021909,39109.0,39105.0,0.37474]
[1646663883667,0.5,39113.0,39108.0,0.95484]
[1646663884025,0.26106887,39124.0,39111.0,0.1992]
[1646663884220,0.32500487,39125.0,39114.0,0.1992]
[1646663884419,0.86783642,39130.0,39115.0,0.3]
[1646663884420,0.26106887,39126.0,39115.0,0.3]
[1646663884620,0.26106887,39127.0,39115.0,0.3]
[1646663884822,0.26106887,39127.0,39116.0,0.327057]
[1646663885020,0.26106887,39128.0,39121.0,0.06392]
[1646663885222,6.406e-05,39122.0,39121.0,0.06392]
[1646663885420,0.24847,39133.0,39125.0,0.18365656]
[1646663885421,0.26106887,39131.0,39125.0,0.18365656]
[1646663885621,0.26106887,39136.0,39126.0,0.347]
[1646663885819,0.26106887,39136.0,39126.0,0.524801]
[1646663886420,0.31328264,39139.0,39126.0,0.524801]
[1646663886421,0.3,39135.0,39128.0,0.063901]
[1646663886623,0.46063701,39138.0,39128.0,0.063901]
[1646663886624,0.32554,39137.0,39128.0,0.063901]
[1646663886825,0.3,39137.0,39129.0,0.19173032]
[1646663887220,0.3,39137.0,39129.0,0.24173032]
[1646663887859,0.56002445,39139.0,39130.0,0.113911]
[1646663888059,0.26106887,39138.0,39132.0,0.12782]
[1646663888459,0.29895558,39139.0,39132.0,0.12782]
[1646663888659,0.42814977,39138.0,39132.0,0.17782]
[1646663888863,0.00021895,39137.0,39132.0,0.17782]
[1646663889060,0.24779446,39133.0,39132.0,0.17782]
[1646663889460,0.19454179,39133.0,39132.0,0.17782]
[1646663889661,0.89180879,39133.0,39118.0,0.1992]
[1646663889864,0.127865,39131.0,39121.0,0.5]
[1646663890062,0.3,39130.0,39121.0,0.5]
[1646663890261,0.3,39130.0,39122.0,0.063937]
[1646663890262,0.0956,39129.0,39122.0,0.063937]
[1646663890463,0.19004499,39128.0,39122.0,0.063937]
[1646663890664,0.21679019,39128.0,39122.0,0.063937]
[1646663891062,0.53427169,39134.0,39122.0,0.063937]
[1646663891264,0.00021895,39127.0,39122.0,0.063937]
[1646663891519,0.00021895,39127.0,39126.0,0.17943759]
[1646663891716,0.29621895,39132.0,39126.0,0.24335959]
[1646663891917,0.1,39133.0,39126.0,0.24335959]
[1646663891918,0.1,39133.0,39126.0,0.063922]
[1646663892114,0.1,39133.0,39128.0,0.01426662]
[1646663892315,0.2187496,39131.0,39128.0,0.01426662]
[1646663892614,0.3,39135.0,39128.0,0.01426662]
[1646663892615,0.4,39135.0,39128.0,0.01426662]
[1646663893015,0.002,39131.0,39128.0,0.01426662]
[1646663893615,0.002,39131.0,39128.0,0.00521224]
[1646663894120,0.27264869,39137.0,39128.0,0.00521224]
[1646663894121,0.04739879,39143.0,39140.0,0.1992]
[1646663894318,0.58023392,39157.0,39142.0,0.7372]
[1646663894319,0.36509845,39154.0,39142.0,0.7372]
[1646663894517,0.4572,39168.0,39161.0,0.09700055]
[1646663894518,0.76050785,39164.0,39161.0,0.09700055]
[1646663894718,0.23168097,39177.0,39163.0,0.5872]
[1646663894919,0.5009,39184.0,39164.0,0.3]
[1646663894920,0.15785233,39182.0,39164.0,0.3]
[1646663895279,0.15785233,39182.0,39166.0,0.60050313]
[1646663895280,0.15,39177.0,39166.0,0.60050313]
[1646663895469,0.15,39177.0,39167.0,0.15002477]
[1646663895668,0.21519737,39178.0,39167.0,0.15002477]
[1646663895669,0.21519737,39178.0,39167.0,0.20002477]
[1646663895870,0.0011,39184.0,39168.0,0.3]
[1646663896072,0.17534224,39178.0,39170.0,0.01255478]
[1646663896271,0.17534224,39178.0,39170.0,0.36255478]
[1646663896471,0.17534224,39178.0,39170.0,0.06255478]
[1646663896869,0.17534224,39178.0,39172.0,0.127687]
[1646663897070,0.17534224,39178.0,39174.0,0.0126516]
[1646663897268,0.21622575,39180.0,39174.0,0.0126516]
[1646663897469,0.21622575,39180.0,39175.0,0.063843]
[1646663898072,0.05723873,39177.0,39175.0,0.063843]
[1646663898272,0.697267,39176.0,39174.0,0.0126516]
[1646663898472,0.45,39175.0,39171.0,0.5]
[1646663898675,0.397267,39174.0,39171.0,0.5]
[1646663898871,0.397267,39174.0,39157.0,0.1950473]
[1646663898872,0.18714179,39163.0,39157.0,0.1950473]
[1646663899108,0.21632923,39165.0,39162.0,0.063866]
[1646663899311,0.1377982,39163.0,39162.0,0.063866]
[1646663899508,0.1377982,39163.0,39162.0,0.0745952]
[1646663899709,0.1377982,39163.0,39161.0,0.01392439]
[1646663900010,0.1377982,39162.0,39161.0,0.01392439]
[1646663900611,0.6466296,39162.0,39161.0,0.01392439]
[1646663900810,0.6466296,39162.0,39154.0,0.01482859]
[1646663901110,0.5108314,39162.0,39156.0,0.002]
[1646663901311,0.002,39162.0,39156.0,0.002]
[1646663901812,0.063866,39168.0,39163.0,0.004]
[1646663902011,0.36402121,39167.0,39163.0,0.003899]
[1646663902212,0.18078035,39164.0,39163.0,0.003899]
[1646663902412,0.18078035,39164.0,39156.0,0.002]
[1646663902413,1.11853927,39164.0,39156.0,0.002]
[1646663902613,0.19356197,39148.0,39145.0,0.0149594]
[1646663902873,0.02554,39155.0,39140.0,0.06494]
[1646663902874,0.32554,39155.0,39140.0,0.06494]
[1646663903066,0.32554,39155.0,39145.0,0.01032464]
[1646663903268,0.02554,39155.0,39146.0,0.01404437]
[1646663903465,0.02554,39159.0,39146.0,0.01404437]
[1646663903666,0.2287,39160.0,39146.0,0.01404437]
[1646663903667,0.26385448,39160.0,39146.0,0.21324437]
[1646663904066,0.26385448,39160.0,39147.0,0.063883]
[1646663904267,0.06997002,39156.0,39147.0,0.063883]
[1646663904575,0.02554,39149.0,39141.0,0.01433725]
[1646663904772,0.02554,39149.0,39139.0,0.01122066]
[1646663904773,0.422807,39148.0,39139.0,0.01122066]
[1646663904967,0.3,39152.0,39139.0,0.01122066]
[1646663905273,2.6297604,39153.0,39143.0,0.01495706]
[1646663905274,0.21098895,39153.0,39143.0,0.01495706]
[1646663905466,0.23652895,39153.0,39143.0,0.01495706]
[1646663905668,0.02554,39153.0,39143.0,0.01495706]
[1646663905866,0.30087015,39154.0,39143.0,0.01495706]
[1646663905867,0.00087015,39154.0,39143.0,0.01495706]
[1646663906271,0.00087015,39154.0,39146.0,0.1992]
[1646663906510,0.1,39163.0,39145.0,0.063887]
[1646663906511,0.02554,39161.0,39147.0,0.1992]
[1646663906715,0.2302,39166.0,39149.0,0.1992]
[1646663906716,0.00026133,39156.0,39149.0,0.1992]
[1646663906912,0.00026133,39156.0,39153.0,0.1992]
[1646663907311,0.00026133,39156.0,39155.0,0.01037079]
[1646663907712,0.2190767,39163.0,39157.0,0.127734]
[1646663907911,0.2199469,39163.0,39157.0,0.127734]
[1646663908112,0.0008702,39163.0,39159.0,0.01498877]
[1646663908312,0.00255565,39160.0,39159.0,0.01498877]
[1646663908710,0.1377982,39160.0,39159.0,0.01498877]
[1646663909112,0.00255549,39160.0,39159.0,0.01498877]
[1646663910567,0.39982249,39160.0,39159.0,0.01498877]
[1646663910763,0.39982249,39160.0,39147.0,0.5]
[1646663910764,0.79982249,39160.0,39147.0,0.5]
[1646663910961,0.79982249,39160.0,39147.0,0.01508905]
[1646663910962,0.422807,39155.0,39147.0,0.01508905]
[1646663911162,0.1377982,39151.0,39147.0,0.01508905]
[1646663911364,0.1377982,39148.0,39147.0,0.01508905]
[1646663912167,0.1377982,39148.0,39137.0,0.127806]
[1646663912168,0.32554,39148.0,39137.0,0.127806]
[1646663912368,0.397267,39147.0,39142.0,0.01381293]
[1646663912564,0.047,39154.0,39142.0,0.01381293]
[1646663912565,0.063903,39150.0,39142.0,0.01381293]
[1646663912764,0.047,39154.0,39142.0,0.01381293]
[1646663912765,0.047,39154.0,39143.0,0.063897]
[1646663912965,0.00086802,39155.0,39144.0,0.3]
[1646663913267,0.00086802,39155.0,39146.0,0.12776]
[1646663913464,0.00086802,39155.0,39147.0,0.01286657]
[1646663913663,0.19366115,39155.0,39147.0,0.06286657]
[1646663913865,0.17816115,39155.0,39147.0,0.06286657]
[1646663914120,0.08964156,39157.0,39147.0,0.26206657]
[1646663914320,0.08964156,39157.0,39148.0,0.3]
[1646663914522,0.06410156,39157.0,39148.0,0.05]
[1646663914924,0.063884,39157.0,39147.0,0.31206657]